bitfinex/quotes_BTCUSD_20251113
["timestamp","ask_amount","ask_price","bid_price","bid_amount"]
[1763052340949,0.47199097,101050.0,101030.0,0.54545094]
[1763052341489,0.19992182,101050.0,101030.0,0.63217094]
[1763052341698,0.1979414,101040.0,101030.0,0.63217094]
[1763052341900,0.1979414,101040.0,101030.0,0.54545094]
[1763052342312,0.21992182,101050.0,101030.0,0.60307094]
[1763052342524,0.19992182,101050.0,101030.0,0.68979094]
[1763052342736,0.19992182,101050.0,101040.0,0.1979414]
[1763052342977,0.36190419,101060.0,101050.0,0.19792182]
[1763052343208,0.09816915,101070.0,101060.0,0.19790223]
[1763052343417,0.0002,101080.0,101070.0,0.19788265]
[1763052343625,0.0002,101080.0,101070.0,0.87015955]
[1763052344057,0.34996307,101080.0,101060.0,0.323]
[1763052344259,0.34996307,101080.0,101060.0,0.52090223]
[1763052344478,0.0002,101080.0,101070.0,0.36889265]
[1763052344686,0.00066652,101080.0,101070.0,0.36889265]
[1763052344894,0.00066652,101080.0,101070.0,0.87896955]
[1763052345306,0.00066652,101080.0,101070.0,0.36889265]
[1763052345307,0.19852959,101080.0,101070.0,0.36889265]
[1763052345508,0.35042959,101080.0,101070.0,0.02667]
[1763052345726,0.19852959,101080.0,101070.0,0.02667]
[1763052345941,0.19788265,101070.0,101060.0,0.323]
[1763052346148,0.22172265,101070.0,101060.0,0.323]
[1763052346353,0.19790223,101060.0,101050.0,0.04559609]
[1763052346554,0.19790223,101060.0,101050.0,0.55662182]
[1763052346762,0.19790223,101060.0,101050.0,0.61424182]
[1763052347180,0.24172265,101070.0,101050.0,0.61424182]
[1763052347391,0.29569219,101070.0,101060.0,0.19790223]
[1763052347583,0.24172265,101070.0,101060.0,0.19790223]
[1763052347793,0.24298021,101070.0,101050.0,0.64434182]
[1763052347915,0.24172265,101070.0,101050.0,0.64434182]
[1763052348117,0.29607138,101060.0,101050.0,0.0367]
[1763052348350,0.31607138,101060.0,101050.0,0.23462182]
[1763052348950,0.19790223,101060.0,101050.0,0.29124182]
[1763052349153,0.3398918,101070.0,101060.0,0.19790223]
[1763052349410,0.19788265,101070.0,101060.0,0.25290223]
[1763052349582,0.19788265,101070.0,101050.0,0.83041872]
[1763052349583,0.19788265,101070.0,101050.0,0.64334182]
[1763052349860,0.19790223,101060.0,101050.0,0.55662182]
[1763052350088,0.19790223,101060.0,101050.0,0.3597]
[1763052350286,0.41138072,101060.0,101050.0,0.001]
[1763052350487,0.19790223,101060.0,101050.0,0.23362182]
[1763052350700,0.19792182,101050.0,101040.0,0.3587]
[1763052351013,0.19792182,101050.0,101040.0,0.5566414]
[1763052352365,0.19792182,101050.0,101040.0,0.0357]
[1763052352577,0.28027182,101050.0,101040.0,0.0357]
[1763052352803,0.47692433,101050.0,101040.0,0.2336414]
[1763052353207,0.47692433,101050.0,101040.0,0.0357]
[1763052353868,0.197961,101030.0,101020.0,0.35357961]
[1763052354064,0.2179414,101040.0,101020.0,0.41119961]
[1763052354387,0.51402042,101050.0,101030.0,0.222311]
[1763052354593,0.41553706,101050.0,101030.0,0.222311]
[1763052354751,0.29609097,101050.0,101040.0,0.1979414]
[1763052354916,0.09816915,101050.0,101040.0,0.1979414]
[1763052355579,0.09816915,101050.0,101040.0,0.2555614]
[1763052355787,0.06443,101060.0,101050.0,0.19792182]
[1763052355996,0.24233223,101060.0,101050.0,0.19792182]
[1763052356361,0.1979414,101040.0,101030.0,0.34735]
[1763052356546,0.1979414,101040.0,101030.0,0.02448994]
[1763052356547,0.30846055,101040.0,101030.0,0.02448994]
[1763052356909,0.27006915,101040.0,101030.0,0.02448994]
[1763052357107,0.19792182,101050.0,101030.0,0.36057094]
[1763052357316,0.29709097,101050.0,101040.0,0.1979414]
[1763052357517,0.2602914,101040.0,101030.0,0.02448994]
[1763052357673,0.2802914,101040.0,101030.0,0.02448994]
[1763052357874,0.2802914,101040.0,101030.0,0.22245094]
[1763052358222,0.2802914,101040.0,101030.0,0.02448994]
[1763052358781,0.3698414,101040.0,101030.0,0.00013994]
[1763052359195,0.37034458,101040.0,101030.0,0.19810094]
[1763052359381,0.97890484,101040.0,101030.0,0.00013994]
[1763052359784,0.46882794,101040.0,101030.0,0.00013994]
[1763052360026,0.37034458,101040.0,101030.0,0.19810094]
[1763052360467,0.19844458,101040.0,101030.0,0.27708094]
[1763052360606,0.19844458,101040.0,101030.0,0.07911994]
[1763052360814,0.00050318,101040.0,101030.0,0.27708094]
[1763052361018,0.00050318,101040.0,101030.0,0.86765784]
[1763052361498,0.26866458,101040.0,101030.0,0.00013994]
[1763052361703,0.20844458,101040.0,101030.0,0.27708094]
[1763052361853,0.02050318,101040.0,101030.0,0.86765784]
[1763052362234,0.02050318,101040.0,101030.0,0.68058094]
[1763052362447,0.02050318,101040.0,101030.0,0.60008094]
[1763052362848,0.02050318,101040.0,101030.0,0.68058094]
[1763052363360,0.02050318,101040.0,101030.0,1.19065784]
[1763052363563,0.00050318,101040.0,101030.0,1.19065784]
[1763052363992,0.02050318,101040.0,101030.0,0.68058094]
[1763052364669,0.00050318,101040.0,101030.0,1.19065784]
[1763052365791,0.00050318,101040.0,101030.0,1.23407658]
[1763052366349,0.00050318,101040.0,101030.0,1.19065784]
[1763052366756,0.00050318,101040.0,101030.0,0.60008094]
[1763052366934,0.21844458,101040.0,101030.0,0.60108094]
[1763052367139,0.02050318,101040.0,101030.0,0.27808094]
[1763052367353,0.02050318,101040.0,101030.0,0.68073094]
[1763052367621,0.02050318,101040.0,101030.0,0.68173094]
[1763052368030,0.02050318,101040.0,101030.0,0.67973094]
[1763052368434,0.02050318,101040.0,101030.0,0.68073094]
[1763052368637,0.21844458,101040.0,101030.0,0.67973094]
[1763052368771,0.21844458,101040.0,101030.0,0.60008094]
[1763052369008,0.32601816,101040.0,101030.0,0.00013994]
[1763052369235,0.92638506,101040.0,101030.0,0.00013994]
[1763052369823,0.41630816,101040.0,101030.0,0.00013994]
[1763052370071,0.92638506,101040.0,101030.0,0.00013994]
[1763052370692,0.92938506,101040.0,101030.0,0.00013994]
[1763052370918,1.06092715,101040.0,101030.0,0.00013994]
[1763052371469,1.06292715,101040.0,101030.0,0.00013994]
[1763052373367,1.10634589,101040.0,101030.0,0.00013994]
[1763052373549,0.2180198,101000.0,100990.0,0.08898524]
[1763052373682,0.39700895,101000.0,100990.0,9.229e-05]
[1763052373893,0.60578231,101000.0,100990.0,9.229e-05]
[1763052374101,0.50729895,101000.0,100990.0,9.229e-05]
[1763052374726,0.50729895,101000.0,100990.0,0.19913169]
[1763052374971,0.50729895,101000.0,100990.0,0.00109229]
[1763052375170,1.14891794,101000.0,100990.0,0.00109229]
[1763052375381,0.50729895,101000.0,100990.0,0.00109229]
[1763052375837,0.16286915,101000.0,100990.0,0.22580169]
[1763052375958,0.11816915,101000.0,100990.0,0.36246169]
[1763052376158,0.11816915,101000.0,100990.0,0.08477229]
[1763052376159,0.2180198,101000.0,100990.0,0.08477229]
[1763052376368,0.2180198,101000.0,100990.0,0.02676229]
[1763052376629,0.2741398,101000.0,100990.0,0.02676229]
[1763052376843,0.02,101000.0,100990.0,0.28281169]
[1763052377053,0.2080198,101000.0,100990.0,0.28281169]
[1763052377266,0.2080198,101000.0,100990.0,0.02676229]
[1763052377475,0.31155738,101000.0,100990.0,0.02676229]
[1763052377693,0.2080198,101000.0,100990.0,0.22480169]
[1763052378307,0.3544298,101000.0,100990.0,9.229e-05]
[1763052378509,0.2641398,101000.0,100990.0,9.229e-05]
[1763052378708,0.01,101000.0,100990.0,0.22480169]
[1763052378929,0.3544298,101000.0,100990.0,9.229e-05]
[1763052379724,0.2641398,101000.0,100990.0,0.22480169]
[1763052379930,0.01,101000.0,100990.0,0.36246169]
[1763052380089,0.2080198,101000.0,100990.0,0.28281169]
[1763052380500,0.2080198,101000.0,100990.0,0.22480169]
[1763052381148,0.01,101000.0,100990.0,0.22480169]
[1763052381350,0.2080198,101000.0,100990.0,0.22480169]
[1763052381549,0.01,101000.0,100990.0,0.22480169]
[1763052381753,0.01,101000.0,100990.0,1.00408068]
[1763052382225,0.3544298,101000.0,100990.0,9.229e-05]
[1763052383991,0.2080198,101000.0,100990.0,0.28281169]
[1763052384218,0.01,101000.0,100990.0,0.28281169]
[1763052384421,0.01,101000.0,100990.0,0.02676229]
[1763052384422,0.2080198,101000.0,100990.0,0.02676229]
[1763052384634,0.38650641,101000.0,100990.0,9.229e-05]
[1763052385898,0.3544298,101000.0,100990.0,9.229e-05]
[1763052386344,0.13889361,101000.0,100990.0,9.229e-05]
[1763052386469,0.33691341,101000.0,100990.0,9.229e-05]
[1763052387055,1.01195114,101000.0,100990.0,9.229e-05]
[1763052387264,0.32691341,101000.0,100990.0,9.229e-05]
[1763052387451,0.23662341,101000.0,100990.0,9.229e-05]
[1763052387650,0.23662341,101000.0,100990.0,0.02676229]
[1763052387901,0.01,101000.0,100990.0,0.22480169]
[1763052388111,0.2080198,101000.0,100990.0,0.22480169]
[1763052388319,0.99597879,101000.0,100990.0,9.229e-05]
[1763052388524,0.99997879,101000.0,100990.0,9.229e-05]
[1763052388727,0.3583598,101000.0,100990.0,9.229e-05]
[1763052389059,0.99997879,101000.0,100990.0,9.229e-05]
[1763052389423,1.09846215,101000.0,100990.0,9.229e-05]
[1763052390205,1.42146215,101000.0,100990.0,9.229e-05]
[1763052395680,0.3583598,101000.0,100990.0,9.229e-05]
[1763052395885,0.3514398,101000.0,100990.0,9.229e-05]
[1763052396302,0.99305879,101000.0,100990.0,9.229e-05]
[1763052396919,1.01139232,101000.0,100990.0,9.229e-05]
[1763052397119,1.01138888,101000.0,100990.0,9.229e-05]
[1763052397320,1.10987224,101000.0,100990.0,9.229e-05]
[1763052397752,0.3514398,101000.0,100990.0,9.229e-05]
[1763052397955,0.99305879,101000.0,100990.0,9.229e-05]
[1763052399365,0.2681398,101000.0,100990.0,0.19813169]
[1763052399567,0.014,101000.0,100990.0,0.19813169]
[1763052399775,0.014,101000.0,100990.0,0.25726169]
[1763052400084,0.2120198,101000.0,100990.0,0.25726169]
[1763052400883,0.014,101000.0,100990.0,0.25726169]
[1763052401219,0.2120198,101000.0,100990.0,0.34663169]
[1763052401425,0.2120198,101000.0,100990.0,0.25726169]
[1763052401633,0.014,101000.0,100990.0,0.34663169]
[1763052401834,0.014,101000.0,100990.0,0.66963169]
[1763052402040,0.004,101000.0,100990.0,0.66963169]
[1763052402786,0.2200198,101000.0,100990.0,0.38222229]
[1763052403051,0.41129884,101000.0,100990.0,9.229e-05]
[1763052403293,1.05391783,101000.0,100990.0,9.229e-05]
[1763052403515,1.05491783,101000.0,100990.0,9.229e-05]
[1763052404047,0.41329884,101000.0,100990.0,9.229e-05]
[1763052404463,0.3616798,101000.0,100990.0,9.229e-05]
[1763052405233,1.00329879,101000.0,100990.0,9.229e-05]
[1763052405663,1.02164332,101000.0,100990.0,9.229e-05]
[1763052406479,1.00329879,101000.0,100990.0,9.229e-05]
[1763052407901,0.3616798,101000.0,100990.0,9.229e-05]
[1763052408105,0.46016316,101000.0,100990.0,9.229e-05]
[1763052409012,0.2783798,101000.0,100990.0,9.229e-05]
[1763052409238,0.3616798,101000.0,100990.0,9.229e-05]
[1763052409723,1.00329879,101000.0,100990.0,9.229e-05]
[1763052410892,1.02164057,101000.0,100990.0,9.229e-05]
[1763052411997,1.00329879,101000.0,100990.0,9.229e-05]
[1763052412193,1.12012893,101000.0,100990.0,9.229e-05]
[1763052412956,0.022,101000.0,100990.0,0.34663169]
[1763052413160,0.022,101000.0,100990.0,0.66963169]
[1763052413691,0.2200198,101000.0,100990.0,0.52113169]
[1763052414054,0.2783798,101000.0,100990.0,0.32309229]
[1763052414184,0.47503231,101000.0,100990.0,0.32309229]
[1763052415029,0.45984895,101000.0,100990.0,0.32309229]
[1763052415827,1.10146794,101000.0,100990.0,9.229e-05]
[1763052419265,1.1198369,101000.0,100990.0,9.229e-05]
[1763052421046,0.39491791,101000.0,100990.0,0.19813169]
[1763052421281,0.33655791,101000.0,100990.0,0.19813169]
[1763052421498,0.31818895,101000.0,100990.0,9.229e-05]
[1763052422285,0.31818895,101000.0,100990.0,0.19813169]
[1763052422488,0.31818895,101000.0,100990.0,9.229e-05]
[1763052422683,0.37451895,101000.0,100990.0,9.229e-05]
[1763052423034,0.45713895,101000.0,100990.0,9.229e-05]
[1763052423337,0.31818895,101000.0,100990.0,0.05888229]
[1763052423566,0.022,101000.0,100990.0,0.33727169]
[1763052423735,0.022,101000.0,100990.0,0.66027169]
[1763052424117,0.2200198,101000.0,100990.0,0.66027169]
[1763052424516,0.022,101000.0,100990.0,0.66027169]
[1763052425048,0.2200198,101000.0,100990.0,0.46223229]
[1763052425242,0.2200198,101000.0,100990.0,0.38188229]
[1763052425454,1.00058879,101000.0,100990.0,9.229e-05]
[1763052425631,1.04239092,101000.0,100990.0,9.229e-05]
[1763052425860,0.40077193,101000.0,100990.0,9.229e-05]
[1763052426069,0.49894108,101000.0,100990.0,9.229e-05]
[1763052426245,0.31818895,101000.0,100990.0,0.25398169]
[1763052426448,0.31818895,101000.0,100990.0,0.19813169]
[1763052426871,0.022,101000.0,100990.0,0.66133169]
[1763052427073,0.002,101000.0,100990.0,1.30295068]
[1763052427417,0.002,101000.0,100990.0,0.66133169]
[1763052427921,0.00025161,101030.0,101020.0,0.52098059]
[1763052428157,0.00025161,101030.0,101020.0,1.16259958]
[1763052428363,0.00025161,101030.0,101020.0,1.21844958]
[1763052428573,0.00025161,101030.0,101020.0,0.66118059]
[1763052428784,0.00025161,101030.0,101020.0,1.30279958]
[1763052429416,0.00125161,101030.0,101020.0,1.34621832]
[1763052429631,0.00125161,101030.0,101020.0,1.35635647]
[1763052430049,0.00125161,101030.0,101020.0,1.52690666]
[1763052430257,0.21936333,101080.0,101060.0,0.323]
[1763052430471,0.2165556,101080.0,101070.0,0.09164]
[1763052430677,0.19788265,101070.0,101060.0,0.323]
[1763052430935,0.2780739,101070.0,101060.0,0.35879]
[1763052431134,0.2362439,101070.0,101060.0,0.61254223]
[1763052431336,0.03836125,101070.0,101060.0,0.61254223]
[1763052431541,0.02009234,101070.0,101060.0,0.69689223]
[1763052431746,9.234e-05,101070.0,101060.0,0.69689223]
[1763052431958,0.19797499,101070.0,101060.0,0.49899]
[1763052432169,0.19897499,101070.0,101060.0,0.69689223]
[1763052432376,0.01209234,101070.0,101060.0,0.69689223]
[1763052432783,0.20997499,101070.0,101060.0,0.49899]
[1763052432982,0.20997499,101070.0,101060.0,0.69689223]
[1763052433186,0.01209234,101070.0,101060.0,0.69689223]
[1763052434223,0.20997499,101070.0,101060.0,0.69689223]
[1763052434429,0.01209234,101070.0,101060.0,0.69689223]
[1763052434645,0.00209234,101070.0,101060.0,1.20670698]
[1763052435061,0.00209234,101070.0,101060.0,1.25012572]
[1763052435456,0.00109234,101070.0,101060.0,1.25012572]
[1763052435681,9.234e-05,101070.0,101060.0,1.25012572]
[1763052435905,0.00109834,101070.0,101060.0,1.25012572]
[1763052436129,0.00109834,101070.0,101060.0,1.32359854]
[1763052436358,0.00109834,101070.0,101060.0,0.74031097]
[1763052436594,0.12014771,101080.0,101060.0,0.69689223]
[1763052436830,0.14061397,101080.0,101070.0,0.323]
[1763052437155,0.14061397,101080.0,101070.0,0.55098265]
[1763052437263,0.02046626,101080.0,101070.0,0.63533265]
[1763052438013,0.21818734,101080.0,101070.0,0.43745]
[1763052438229,0.00046626,101080.0,101070.0,1.18856614]
[1763052439759,0.00046626,101080.0,101070.0,0.67875139]
[1763052440865,0.00046626,101080.0,101070.0,1.18856614]
[1763052441077,0.00046626,101080.0,101070.0,0.67875139]
[1763052441346,0.00046626,101080.0,101070.0,1.18856614]
[1763052441541,0.19832933,101080.0,101070.0,0.55098265]
[1763052441738,0.01985801,101070.0,101060.0,0.31804223]
[1763052441970,0.21774066,101070.0,101060.0,0.03579]
[1763052442167,0.21774066,101070.0,101060.0,0.28954223]
[1763052442374,0.21774066,101070.0,101060.0,0.61254223]
[1763052442581,0.01985801,101070.0,101060.0,0.69689223]
[1763052443016,0.21843936,101080.0,101070.0,0.19788265]
[1763052443241,0.21843936,101080.0,101070.0,0.22799265]
[1763052443602,0.02057569,101080.0,101070.0,0.31234265]
[1763052444011,0.02057569,101080.0,101070.0,0.63534265]
[1763052444214,0.00171768,101080.0,101070.0,0.63534265]
[1763052444987,0.00271768,101080.0,101070.0,0.63534265]
[1763052445556,0.20058075,101080.0,101070.0,0.63534265]
[1763052446350,0.22043876,101080.0,101070.0,0.323]
[1763052446523,0.22043876,101080.0,101070.0,0.57673265]
[1763052446724,0.02257569,101080.0,101070.0,0.66108265]
[1763052447136,0.00271768,101080.0,101070.0,0.66108265]
[1763052447776,0.00271768,101080.0,101070.0,0.80678265]
[1763052449946,0.20058075,101080.0,101070.0,0.6089]
[1763052450152,0.22043876,101080.0,101070.0,0.6089]
[1763052450352,0.22043876,101080.0,101070.0,0.4687]
[1763052450755,0.35232876,101080.0,101070.0,0.1457]
[1763052451310,0.21774066,101070.0,101060.0,0.55669223]
[1763052451482,0.01985801,101070.0,101060.0,0.64219223]
[1763052451710,0.21774066,101070.0,101060.0,0.69709223]
[1763052451919,0.01985801,101070.0,101060.0,0.69709223]
[1763052452626,0.00071768,101080.0,101070.0,0.19788265]
[1763052452783,0.00071768,101080.0,101070.0,1.1460074]
[1763052453036,0.00071768,101080.0,101070.0,1.18942614]
[1763052453784,0.00171768,101080.0,101070.0,1.18942614]
[1763052453989,0.00171768,101080.0,101070.0,1.19042614]
[1763052454195,0.00071768,101080.0,101070.0,1.20571852]
[1763052454728,0.00071768,101080.0,101070.0,1.20671852]
[1763052456425,0.00071768,101080.0,101070.0,0.69690377]
[1763052456594,0.02057569,101080.0,101070.0,0.69690377]
[1763052456798,0.00071768,101080.0,101070.0,0.69690377]
[1763052457024,0.00071768,101080.0,101070.0,1.20671852]
[1763052458397,0.00071768,101080.0,101070.0,1.23326075]
[1763052459482,0.00071768,101080.0,101070.0,1.26865039]
[1763052459711,0.00071768,101080.0,101070.0,1.41435039]
[1763052460369,0.0002,101100.0,101090.0,0.24126224]
[1763052460576,0.0002,101100.0,101090.0,0.31903224]
[1763052461026,0.00070273,101100.0,101090.0,0.40453224]
[1763052461320,0.00070273,101100.0,101090.0,1.00311537]
[1763052461549,0.00070273,101100.0,101090.0,1.30826779]
[1763052461745,0.00070273,101100.0,101090.0,0.79845304]
[1763052461964,0.00041112,101100.0,101090.0,1.04859914]
[1763052462174,0.34998306,101100.0,101090.0,0.39392437]
[1763052462377,0.85979781,101100.0,101090.0,0.05516027]
[1763052463202,0.85979781,101100.0,101090.0,0.09060215]
[1763052463628,0.85979781,101100.0,101090.0,0.06401205]
[1763052463811,0.95828117,101100.0,101090.0,0.06401205]
[1763052464249,0.44846642,101100.0,101090.0,0.06401205]
[1763052464458,0.95828117,101100.0,101090.0,0.02857017]
[1763052464661,0.85979781,101100.0,101090.0,0.02857017]
[1763052465046,0.85979781,101100.0,101090.0,0.02657017]
[1763052465323,0.85979781,101100.0,101090.0,0.06201205]
[1763052465527,0.85979781,101100.0,101090.0,0.02657017]
[1763052465930,0.21770151,101090.0,101080.0,0.06201205]
[1763052466142,0.42314066,101090.0,101080.0,0.06201205]
[1763052466345,0.93295541,101090.0,101080.0,0.06201205]
[1763052466555,0.42314066,101090.0,101080.0,0.06201205]
[1763052466673,0.85463541,101090.0,101080.0,0.06201205]
[1763052466877,1.03143877,101090.0,101080.0,0.06201205]
[1763052468306,1.03243877,101090.0,101080.0,0.02657017]
[1763052468717,1.03343877,101090.0,101080.0,0.02657017]
[1763052470355,1.03243877,101090.0,101080.0,0.02657017]
[1763052470978,1.35543877,101090.0,101080.0,0.02657017]
[1763052471181,0.21772108,101080.0,101070.0,0.06201205]
[1763052471386,1.46747394,101080.0,101070.0,0.02657017]
[1763052471587,0.95765919,101080.0,101070.0,0.02657017]
[1763052472000,0.85917583,101080.0,101070.0,0.02657017]
[1763052472320,0.27104108,101080.0,101070.0,0.2598947]
[1763052472521,0.21972108,101080.0,101070.0,0.37372453]
[1763052472645,0.21972108,101080.0,101070.0,0.28822453]
[1763052473017,0.86142583,101080.0,101070.0,0.03544188]
[1763052473391,0.86242583,101080.0,101070.0,0.03544188]
[1763052473591,0.27429108,101080.0,101070.0,0.03544188]
[1763052473930,0.27429108,101080.0,101070.0,0.23332453]
[1763052474497,0.27429108,101080.0,101070.0,0.03544188]
[1763052474704,0.35261108,101080.0,101070.0,0.03544188]
[1763052474983,0.22072108,101080.0,101070.0,0.03544188]
[1763052475188,0.35261108,101080.0,101070.0,0.03544188]
[1763052475480,0.86242583,101080.0,101070.0,0.03544188]
[1763052476519,0.86242583,101080.0,101070.0,0.06200685]
[1763052478619,0.86242583,101080.0,101070.0,0.03544188]
[1763052479054,0.96090919,101080.0,101070.0,0.03544188]
[1763052479703,1.79372394,101080.0,101070.0,0.02658188]
[1763052479911,1.28390919,101080.0,101070.0,0.02658188]
[1763052480123,0.19790223,101060.0,101050.0,0.08749239]
[1763052480341,0.21776024,101060.0,101050.0,0.41893047]
[1763052480572,0.30606951,101070.0,101060.0,0.19790223]
[1763052480782,0.30606951,101070.0,101060.0,0.25107441]
[1763052481255,0.47801951,101070.0,101060.0,0.05317218]
[1763052481463,0.01,101070.0,101060.0,0.38412441]
[1763052481672,0.20788265,101070.0,101060.0,0.38412441]
[1763052481937,0.20788265,101070.0,101060.0,0.4018766]
[1763052482174,0.20788265,101070.0,101050.0,1.30000333]
[1763052482175,0.01,101060.0,101050.0,0.57442275]
[1763052482423,0.20790223,101060.0,101050.0,0.57442275]
[1763052482675,0.88598024,101060.0,101050.0,0.07269245]
[1763052482901,0.88598024,101060.0,101050.0,0.05495802]
[1763052483572,0.37616549,101060.0,101050.0,0.05495802]
[1763052483784,0.33808223,101060.0,101050.0,0.05495802]
[1763052484004,0.84789698,101060.0,101050.0,0.00172838]
[1763052484447,0.84789698,101060.0,101050.0,0.05497325]
[1763052484689,0.19792182,101050.0,101040.0,1e-08]
[1763052484923,1.90680184,101050.0,101040.0,9.235e-05]
[1763052485379,0.197961,101030.0,101020.0,0.07096407]
[1763052485607,1.22234376,101030.0,101020.0,0.07096407]
[1763052486056,1.32051291,101030.0,101020.0,0.07096407]
[1763052486273,0.2178386,101020.0,101010.0,0.07096407]
[1763052486547,0.72765335,101020.0,101010.0,9.229e-05]
[1763052486778,0.80522335,101020.0,101010.0,9.229e-05]
[1763052487006,0.86115335,101020.0,101010.0,9.229e-05]
[1763052487243,0.86115335,101020.0,101010.0,0.07108805]
[1763052487471,0.95963671,101020.0,101010.0,0.07108805]
[1763052487701,0.95963671,101020.0,101010.0,0.07208805]
[1763052489093,0.95963671,101020.0,101010.0,0.00109229]
[1763052490003,0.95963671,101020.0,101010.0,9.229e-05]
[1763052490481,0.31604696,101000.0,100990.0,0.07092656]
[1763052490713,1.44401292,101000.0,100990.0,0.07106653]
[1763052490960,1.44401292,101000.0,100990.0,0.07257669]
[1763052490961,1.01176817,101000.0,100990.0,0.07257669]
[1763052491175,0.44954696,101000.0,100990.0,0.00165013]
[1763052491428,1.09162271,101000.0,100990.0,0.00165013]
[1763052491678,0.44954696,101000.0,100990.0,0.00165013]
[1763052491933,0.45154696,101000.0,100990.0,0.19968953]
[1763052492155,0.12002716,101000.0,100990.0,0.36691953]
[1763052492383,0.02185801,101000.0,100990.0,0.68991953]
[1763052492641,0.22187781,101000.0,100990.0,0.61299953]
[1763052492868,0.3355198,101000.0,100990.0,0.03727013]
[1763052493080,0.35537781,101000.0,100990.0,0.00165013]
[1763052493307,0.42435599,101000.0,100990.0,0.00165013]
[1763052493834,0.42235599,101000.0,100990.0,0.00165013]
[1763052494001,0.42035599,101000.0,100990.0,0.00165013]
[1763052494275,0.42135599,101000.0,100990.0,0.00165013]
[1763052494495,0.42235599,101000.0,100990.0,0.19968953]
[1763052494743,0.42035599,101000.0,100990.0,0.00165013]
[1763052496165,1.06243174,101000.0,100990.0,0.00165013]
[1763052497278,1.06243174,101000.0,100990.0,0.00126004]
[1763052498276,0.35137781,101000.0,100990.0,0.00126004]
[1763052500964,0.35137781,101000.0,100990.0,0.19929944]
[1763052501187,0.35137781,101000.0,100990.0,0.00126004]
[1763052501945,0.35137781,101000.0,100990.0,0.19929944]
[1763052502178,0.01985801,101000.0,100990.0,0.19929944]
[1763052502398,0.01985801,101000.0,100990.0,0.33090944]
[1763052502670,0.01985801,101000.0,100990.0,1.29598519]
[1763052502899,0.01985801,101010.0,101000.0,0.5210198]
[1763052503141,0.01985801,101010.0,101000.0,0.6526298]
[1763052503418,0.33790015,101030.0,101010.0,0.19798247]
[1763052503419,0.01985801,101020.0,101010.0,0.19798247]
[1763052503858,0.19798059,101020.0,101010.0,0.62078319]
[1763052504079,0.2737686,101020.0,101010.0,0.34587]
[1763052504501,0.01985801,101020.0,101010.0,0.67548019]
[1763052504710,0.19798059,101020.0,101010.0,0.67548019]
[1763052504916,0.2178386,101020.0,101010.0,0.54387019]
[1763052505335,0.01985801,101020.0,101010.0,0.59856019]
[1763052505516,0.01985801,101020.0,101010.0,0.67548019]
[1763052505784,0.24943749,101020.0,101010.0,0.59856019]
[1763052505992,0.24943749,101020.0,101010.0,0.40056]
[1763052506200,0.30536749,101020.0,101010.0,0.34587]
[1763052506816,0.24943749,101020.0,101010.0,0.34587]
[1763052507232,0.2178386,101020.0,101010.0,0.34587]
[1763052507440,0.23605754,101020.0,101010.0,0.59856019]
[1763052507855,0.03807695,101020.0,101010.0,0.59856019]
[1763052508000,0.19361382,101030.0,101020.0,0.19798059]
[1763052508209,0.21361382,101030.0,101020.0,0.19798059]
[1763052508414,0.21798059,101020.0,101010.0,0.62079019]
[1763052508618,0.21798059,101020.0,101010.0,0.34587]
[1763052509154,0.21800019,101010.0,101000.0,0.2181298]
[1763052509362,0.29036019,101010.0,101000.0,0.02011]
[1763052509578,0.36793019,101010.0,101000.0,0.02011]
[1763052509777,0.09236,101010.0,101000.0,0.2181298]
[1763052509966,0.29036019,101010.0,101000.0,0.2181298]
[1763052510144,0.09236,101010.0,101000.0,0.2181298]
[1763052510349,0.0541,101010.0,101000.0,0.2181298]
[1763052510755,0.02,101010.0,101000.0,0.2730798]
[1763052511117,0.31616934,101010.0,101000.0,0.2730798]
[1763052512230,0.31616934,101010.0,101000.0,0.07506]
[1763052512434,0.46918896,101010.0,101000.0,0.02011]
[1763052512596,0.35672934,101010.0,101000.0,0.2181298]
[1763052512798,0.02,101010.0,101000.0,0.3537398]
[1763052513463,0.02,101010.0,101000.0,0.6767398]
[1763052513666,0.13647915,101030.0,101020.0,0.19798059]
[1763052513838,0.31613015,101030.0,101020.0,0.05495]
[1763052514038,0.35669015,101030.0,101010.0,0.27939897]
[1763052514284,0.02,101020.0,101010.0,0.60164249]
[1763052514645,0.02,101020.0,101010.0,0.65659249]
[1763052514899,0.21798059,101020.0,101010.0,0.65659249]
[1763052515127,0.21798059,101020.0,101010.0,0.57593249]
[1763052515256,0.02,101020.0,101010.0,0.57593249]
[1763052515661,0.02,101020.0,101010.0,0.65659249]
[1763052515903,0.04113015,101030.0,101020.0,0.52098059]
[1763052516092,0.0230976,101030.0,101020.0,0.65659059]
[1763052517137,0.0030976,101030.0,101020.0,0.65659059]
[1763052518733,0.0030976,101030.0,101020.0,0.70000933]
[1763052518941,0.0030976,101030.0,101020.0,0.65659059]
[1763052518942,0.0230976,101030.0,101020.0,0.65659059]
[1763052519391,0.0030976,101030.0,101020.0,1.29866634]
[1763052519598,0.02,101030.0,101020.0,1.29917111]
[1763052519992,0.03839445,101030.0,101020.0,0.65709536]
[1763052520429,0.04149178,101030.0,101020.0,0.65709536]
[1763052520631,0.02149178,101030.0,101020.0,0.57643536]
[1763052520837,0.04149178,101030.0,101020.0,0.57643536]
[1763052521167,0.23945278,101030.0,101020.0,0.57643536]
[1763052521371,0.04149178,101030.0,101020.0,0.65709536]
[1763052521794,0.02,101030.0,101020.0,0.65709536]
[1763052523411,0.258521,101030.0,101020.0,0.52148536]
[1763052523717,0.02,101030.0,101020.0,0.65709536]
[1763052523920,0.50094431,101030.0,101020.0,0.00050477]
[1763052524063,0.39733015,101030.0,101020.0,0.19848536]
[1763052524474,0.39733015,101030.0,101020.0,0.00050477]
[1763052524475,0.35669015,101030.0,101020.0,0.00050477]
[1763052524675,0.35669015,101030.0,101020.0,0.19848536]
[1763052525157,0.258521,101030.0,101020.0,0.19848536]
[1763052525363,0.258521,101030.0,101020.0,0.00050477]
[1763052525579,0.312111,101030.0,101020.0,0.00050477]
[1763052526000,0.45311827,101030.0,101020.0,0.00050477]
[1763052526243,0.55128742,101030.0,101020.0,0.00050477]
[1763052526424,1.19336317,101030.0,101020.0,0.00050477]
[1763052527202,0.55128742,101030.0,101020.0,0.00050477]
[1763052527407,1.19336317,101030.0,101020.0,0.00050477]
[1763052529210,1.23778191,101030.0,101020.0,0.00050477]
[1763052529635,1.56078191,101030.0,101020.0,0.00050477]
[1763052530221,1.56178191,101030.0,101020.0,0.00050477]
[1763052533646,0.91970616,101030.0,101020.0,0.00050477]
[1763052533868,1.56178191,101030.0,101020.0,0.00050477]
[1763052534078,1.51836317,101030.0,101020.0,0.00050477]
[1763052534495,1.36672135,101030.0,101020.0,0.00050477]
[1763052538357,1.41014009,101030.0,101020.0,0.00050477]
[1763052539990,1.36672135,101030.0,101020.0,0.00050477]
[1763052540399,0.24063833,101030.0,101020.0,0.00050477]
[1763052540594,0.94202408,101030.0,101020.0,0.00050477]
[1763052541126,0.12016915,101030.0,101020.0,0.25293536]
[1763052541359,0.12016915,101030.0,101020.0,1.29895111]
[1763052541360,0.022,101030.0,101020.0,1.29895111]